bitfinex/quotes_SOLUSD_20250131
["timestamp","ask_amount","ask_price","bid_price","bid_amount"]
[1738334490120,0.063,238.18,238.17,33.47917768]
[1738334490835,0.063,238.18,238.17,33.60466768]
[1738334491343,0.063,238.18,238.17,33.47917768]
[1738334491835,0.063,238.18,238.17,33.35368768]
[1738334493246,0.063,238.18,238.17,33.47917768]
[1738334493740,0.063,238.22,238.17,34.73015768]
[1738334494042,0.063,238.22,238.21,26.24057768]
[1738334494412,0.063,238.22,238.21,26.36606768]
[1738334494619,0.063,238.22,238.21,26.49155768]
[1738334495732,0.063,238.22,238.21,30.56396768]
[1738334499848,0.063,238.22,238.21,37.17105768]
[1738334500147,0.063,238.22,238.21,39.17105768]
[1738334501056,0.063,238.23,238.22,17.86062853]
[1738334502117,0.0001,238.3,238.27,13.41184853]
[1738334502318,0.0001,238.3,238.29,26.11508768]
[1738334502520,0.0001,238.3,238.29,13.41184853]
[1738334503746,0.0001,238.3,238.21,13.41184853]
[1738334504853,0.4197,238.3,238.21,13.41184853]
[1738334505445,6.1785,238.29,238.19,13.41184853]
[1738334505752,6.1785,238.29,238.17,7.32399]
[1738334505952,6.1785,238.29,238.18,33.41184853]
[1738334506130,6.1785,238.29,238.18,13.41184853]
[1738334506323,6.1785,238.29,238.18,12.70323915]
[1738334506656,6.1785,238.29,238.21,13.41184853]
[1738334507436,0.0001,238.3,238.27,13.41184853]
[1738334508031,0.0001,238.3,238.27,12.70323915]
[1738334508247,0.0001,238.3,238.28,12.70323915]
[1738334508438,0.0001,238.3,238.27,12.70323915]
[1738334509027,0.0001,238.3,238.29,12.70323915]
[1738334509248,0.0001,238.3,238.29,29.24057768]
[1738334509453,0.063,238.34,238.33,20.12549]
[1738334509761,0.063,238.34,238.33,46.36606768]
[1738334509957,0.063,238.34,238.33,46.49155768]
[1738334510146,0.063,238.36,238.35,0.25098]
[1738334510351,0.063,238.36,238.35,26.36606768]
[1738334510660,0.063,238.42,238.37,20.0]
[1738334510852,0.063,238.42,238.39,33.91380853]
[1738334511159,0.063,238.42,238.39,46.49155768]
[1738334511355,0.063,238.42,238.39,50.56086768]
[1738334511540,0.063,238.42,238.39,33.41184853]
[1738334512252,0.063,238.42,238.39,33.78831853]
[1738334512458,0.063,238.42,238.39,46.49155768]
[1738334512667,0.063,238.42,238.39,54.05062455]
[1738334513429,0.063,238.42,238.41,0.12549]
[1738334513765,0.063,238.42,238.41,33.92513455]
[1738334514337,0.063,238.42,238.41,34.05062455]
[1738334514643,0.063,238.42,238.41,35.17611455]
[1738334515758,0.063,238.42,238.41,55.43842057]
[1738334516155,0.063,238.48,238.47,34.05062455]
[1738334516341,0.063,238.48,238.47,37.17611455]
[1738334516948,0.063,238.54,238.53,0.12549]
[1738334517151,0.063,238.54,238.53,33.79964455]
[1738334517448,0.063,238.54,238.53,34.05062455]
[1738334518048,0.063,238.54,238.53,38.24292455]
[1738334518758,0.063,238.54,238.53,37.99194455]
[1738334519455,0.063,238.54,238.53,38.24292455]
[1738334519658,0.063,238.54,238.53,38.36841455]
[1738334519958,0.063,238.54,238.53,89.63072057]
[1738334520355,0.063,238.58,238.57,33.92513455]
[1738334520658,0.063,238.58,238.57,33.79964455]
[1738334520970,0.063,238.58,238.57,33.67415455]
[1738334521878,0.4821,238.58,238.47,13.41184853]
[1738334522042,0.4821,238.58,238.46,13.41184853]
[1738334522464,0.4821,238.58,238.5,20.26230602]
[1738334522645,0.4821,238.58,238.51,20.26230602]
[1738334522961,0.4821,238.58,238.5,20.26230602]
[1738334523172,8.1175,238.57,238.46,13.41184853]
[1738334523547,8.1175,238.57,238.46,33.67415455]
[1738334524267,0.4191,238.56,238.46,33.67415455]
[1738334524970,0.4191,238.56,238.48,20.26230602]
[1738334526164,0.4191,238.56,238.46,33.67415455]
[1738334526675,0.78596521,238.55,238.43,20.26230602]
[1738334526969,0.78596521,238.55,238.34,6.4602]
[1738334526970,20.0,238.54,238.39,20.26230602]
[1738334527183,0.78622093,238.53,238.4,13.41184853]
[1738334527475,0.78622093,238.53,238.46,0.03]
[1738334528172,1.4673,238.52,238.46,0.03]
[1738334528345,1.4673,238.52,238.38,13.41184853]
[1738334528346,20.0,238.47,238.34,13.41184853]
[1738334528545,2.32541391,238.46,238.33,13.44184853]
[1738334528748,2.32541391,238.46,238.34,20.0]
[1738334529042,1.539,238.46,238.34,20.26230602]
[1738334529446,2.32536234,238.46,238.34,20.0]
[1738334529666,2.32536234,238.46,238.33,0.03]
[1738334530262,1.4677,238.45,238.33,0.03]
[1738334530462,0.78642612,238.44,238.33,0.03]
[1738334531962,0.78642612,238.44,238.33,20.03]
[1738334532380,1.4679,238.43,238.33,20.03]
[1738334532675,1.4679,238.43,238.33,0.03]
[1738334532676,2.25442436,238.43,238.33,0.03]
[1738334533482,1.4679,238.43,238.33,0.03]
[1738334534179,6.345,238.41,238.33,0.03]
[1738334534353,0.4194,238.39,238.33,0.03]
[1738334534673,0.78666535,238.38,238.33,0.03]
[1738334534877,20.78666535,238.38,238.33,0.03]
[1738334535060,20.0,238.38,238.33,0.03]
[1738334535257,6.7644,238.41,238.34,20.26230602]
[1738334535462,0.78646244,238.4,238.33,0.03]
[1738334535973,20.0,238.38,238.33,0.03]
[1738334536182,0.78670495,238.37,238.33,0.03]
[1738334536483,0.4195,238.36,238.33,0.03]
[1738334537872,0.4194,238.4,238.33,0.03]
[1738334538074,0.4194,238.4,238.33,20.29230602]
[1738334538669,0.4194,238.4,238.34,12.67405499]
[1738334538986,0.4194,238.4,238.33,0.03]
[1738334542571,1.602,238.46,238.37,20.28440369]
[1738334542779,1.602,238.46,238.39,20.28440369]
[1738334542955,1.602,238.46,238.4,20.28440369]
[1738334543483,0.063,238.46,238.4,20.28440369]
[1738334543854,0.063,238.46,238.39,20.28440369]
[1738334544775,0.063,238.46,238.41,40.28440369]
[1738334546054,0.063,238.46,238.39,20.28440369]
[1738334546252,0.4193,238.45,238.35,33.69625222]
[1738334547077,0.4193,238.45,238.35,20.0]
[1738334547383,1.4677,238.45,238.35,20.0]
[1738334547585,1.4677,238.45,238.34,20.0]
[1738334548885,0.4193,238.45,238.34,24.1956]
[1738334552196,0.4193,238.45,238.38,20.0]
[1738334552370,0.063,238.46,238.44,20.28440369]
[1738334553275,0.063,238.46,238.42,20.28440369]
[1738334554189,0.4823,238.46,238.42,20.28440369]
[1738334554366,0.4823,238.46,238.39,13.41184853]
[1738334554879,0.4823,238.46,238.38,20.28440369]
[1738334555081,0.4823,238.46,238.36,20.28440369]
[1738334555288,0.4823,238.46,238.34,40.89175222]
[1738334555596,1.5306,238.46,238.34,36.69625222]
[1738334555779,1.5306,238.46,238.34,33.69625222]
[1738334556096,0.4823,238.46,238.36,20.28440369]
[1738334556588,0.4823,238.46,238.36,24.47970369]
[1738334556794,0.4823,238.46,238.38,20.28440369]
[1738334557097,0.063,238.46,238.42,20.28440369]
[1738334557475,0.4823,238.46,238.4,40.28440369]
[1738334557908,0.4823,238.46,238.4,20.0]
[1738334557909,0.063,238.46,238.4,20.0]
[1738334558070,0.063,238.46,238.44,20.28440369]
[1738334558274,0.063,238.46,238.45,13.41184853]
[1738334558476,0.063,238.46,238.45,17.60554853]
[1738334558670,0.063,238.46,238.45,17.73103853]
[1738334559197,0.063,238.46,238.45,17.85652853]
[1738334559495,0.063,238.46,238.45,17.98201853]
[1738334559999,0.063,238.46,238.45,48.10750853]
[1738334560177,0.063,238.58,238.51,0.12549]
[1738334560374,0.063,238.58,238.55,20.28440369]
[1738334561197,0.063,238.58,238.53,20.28440369]
[1738334561886,0.4821,238.58,238.53,20.28440369]
[1738334562085,0.4821,238.58,238.49,20.28440369]
[1738334562292,0.4821,238.58,238.5,13.41184853]
[1738334563200,0.4821,238.58,238.51,20.28440369]
[1738334563710,0.4821,238.58,238.45,20.28440369]
[1738334564609,1.5299,238.58,238.47,20.28440369]
[1738334565180,0.785966,238.57,238.45,20.28440369]
[1738334565493,0.785966,238.57,238.43,20.28440369]
[1738334566900,1.467,238.56,238.42,16.39184853]
[1738334567100,6.3574,238.55,238.43,20.28440369]
[1738334568081,0.78611456,238.54,238.43,20.28440369]
[1738334568293,1.4672,238.53,238.41,20.28440369]
[1738334568508,1.6208,238.52,238.41,20.28440369]
[1738334570007,0.4192,238.51,238.41,20.28440369]
[1738334571002,0.4192,238.51,238.41,24.47880369]
[1738334571306,0.4192,238.51,238.43,20.28440369]
[1738334571490,0.4192,238.51,238.45,20.28440369]
[1738334572992,2.04,238.52,238.45,20.28440369]
[1738334575691,2.04,238.52,238.43,20.31440369]
[1738334575900,2.04,238.52,238.43,0.03]
[1738334579782,2.04,238.52,238.43,13.44184853]
[1738334580812,2.04,238.52,238.45,13.41184853]
[1738334580992,2.04,238.52,238.46,12.66567013]
[1738334581310,0.063,238.57,238.5,12.66567013]
[1738334581615,0.063,238.57,238.52,12.66567013]
[1738334581797,0.063,238.57,238.56,26.07751866]
[1738334582183,0.063,238.57,238.56,26.20300866]
[1738334582408,0.063,238.57,238.56,38.99416879]
[1738334582708,0.063,238.57,238.56,30.52029866]
[1738334583015,0.063,238.57,238.56,30.39480866]
[1738334583314,0.063,238.57,238.56,30.26931866]
[1738334583520,0.063,238.57,238.56,30.52029866]
[1738334583811,0.063,238.57,238.56,43.31145879]
[1738334584183,0.063,238.57,238.56,30.64578866]
[1738334584405,0.063,238.57,238.56,26.20300866]
[1738334584608,0.063,238.57,238.56,54.24770319]
[1738334584912,0.063,238.57,238.56,34.01801086]
[1738334585414,0.063,238.57,238.56,54.37319319]
[1738334585585,0.063,238.57,238.56,56.92649319]
[1738334587117,0.063,238.58,238.57,18.97991853]
[1738334587409,0.063,238.58,238.57,38.20961086]
[1738334588192,0.063,238.58,238.57,41.18961086]
[1738334588785,0.063,238.58,238.57,41.31510086]
[1738334589606,0.063,238.58,238.57,42.31510086]
[1738334589807,0.063,238.58,238.57,41.31510086]
[1738334590911,0.063,238.58,238.57,41.18961086]
[1738334591413,0.063,238.58,238.57,37.83314086]
[1738334591720,0.063,238.58,238.57,40.81314086]
[1738334592723,0.063,238.58,238.57,41.31510086]
[1738334593314,0.063,238.59,238.58,13.91380853]
[1738334593484,0.063,238.62,238.59,14.78831853]
[1738334593691,0.063,238.7,238.66,20.0]
[1738334593913,0.063,238.7,238.69,33.64154086]
[1738334594215,0.063,238.7,238.69,13.41184853]
[1738334594393,0.063,238.7,238.66,20.22969233]
[1738334594598,0.063,238.7,238.66,13.41184853]
[1738334595116,0.063,238.7,238.69,13.41184853]
[1738334595995,0.063,238.7,238.69,33.76703086]
[1738334596187,0.063,238.7,238.69,34.01801086]
[1738334596599,0.063,238.7,238.69,33.76703086]
[1738334596801,0.063,238.7,238.69,33.64154086]
[1738334597192,0.063,238.7,238.69,33.76703086]
[1738334597603,0.063,238.7,238.69,33.89252086]
[1738334597800,0.063,238.7,238.69,34.01801086]
[1738334598709,0.063,238.7,238.69,33.89252086]
[1738334598892,0.063,238.7,238.69,38.08202086]
[1738334599312,0.063,238.7,238.69,13.41184853]
[1738334599493,0.063,238.7,238.69,33.64154086]
[1738334600321,0.063,238.7,238.69,33.89252086]
[1738334600524,0.063,238.7,238.69,33.64154086]
[1738334600898,0.063,238.7,238.69,34.01801086]
[1738334601521,0.063,238.7,238.69,34.14350086]
[1738334602202,0.063,238.79,238.72,30.37647]
[1738334602515,0.063,238.79,238.72,64.01801086]
[1738334602907,0.063,238.79,238.72,34.01801086]
[1738334603121,0.063,238.79,238.72,33.89252086]
[1738334603305,0.063,238.79,238.72,13.41184853]
[1738334603506,0.063,238.79,238.72,33.89252086]
[1738334603830,0.063,238.79,238.72,33.64154086]
[1738334604334,0.063,238.79,238.72,33.76703086]
[1738334604501,0.063,238.79,238.72,33.89252086]
[1738334604704,0.063,238.79,238.72,34.01801086]
[1738334605129,0.063,238.79,238.72,33.76703086]
[1738334605301,0.4188,238.78,238.72,13.41184853]
[1738334605718,0.4188,238.77,238.72,33.64154086]
[1738334605918,0.4188,238.77,238.72,13.41184853]
[1738334606106,0.4188,238.75,238.72,13.41184853]
[1738334607032,0.4188,238.74,238.72,13.41184853]
[1738334607340,0.4818,238.73,238.7,2.98]
[1738334607498,0.4818,238.73,238.71,13.41184853]
[1738334607701,0.4818,238.73,238.7,22.98]
[1738334607702,0.4818,238.73,238.7,2.98]
[1738334608910,0.4818,238.73,238.66,13.41184853]
[1738334609126,0.063,238.73,238.68,26.0493616]
[1738334609323,0.063,238.73,238.72,26.0493616]
[1738334610027,0.063,238.73,238.72,13.41184853]
[1738334610427,0.063,238.73,238.7,13.41184853]
[1738334610731,0.063,238.73,238.72,12.63751307]
[1738334611028,0.063,238.73,238.7,13.41184853]
[1738334611710,0.063,238.73,238.72,13.41184853]
[1738334612130,0.063,238.73,238.72,46.4258316]
[1738334612431,0.063,238.79,238.78,26.3003416]
[1738334612625,0.063,238.79,238.78,26.1748516]
[1738334612802,0.063,238.79,238.78,26.3003416]
[1738334613135,0.063,238.79,238.78,13.41184853]
[1738334614308,0.063,238.79,238.78,26.0493616]
[1738334615223,0.063,238.79,238.78,26.4258316]
[1738334615622,0.063,238.79,238.78,26.3003416]
[1738334615835,0.063,238.79,238.78,26.0493616]
[1738334617208,0.063,238.79,238.78,26.3003416]
[1738334617410,0.063,238.79,238.78,26.4258316]
[1738334617625,0.063,238.79,238.78,26.3003416]
[1738334618237,0.063,238.79,238.78,26.4258316]
[1738334619140,0.063,238.79,238.78,26.5513216]
[1738334619438,0.063,238.79,238.78,26.4258316]
[1738334619629,0.063,238.79,238.78,26.3003416]
[1738334620134,0.063,238.79,238.78,13.41184853]
[1738334620317,0.063,238.79,238.78,26.0493616]
[1738334620517,0.063,238.79,238.78,13.41184853]
[1738334621134,0.063,238.79,238.73,12.63751307]
[1738334621329,0.4817,238.79,238.73,13.41184853]
[1738334621532,0.4817,238.79,238.71,13.41184853]
[1738334622031,0.4817,238.79,238.71,26.0493616]
[1738334622840,0.4817,238.79,238.69,26.0493616]
[1738334623047,20.0,238.77,238.67,12.63751307]
[1738334623342,20.0,238.77,238.7,0.03]
[1738334623542,0.4188,238.76,238.7,0.03]
[1738334625332,2.25112664,238.76,238.7,0.03]
[1738334625730,0.4188,238.76,238.7,0.03]
[1738334626240,1.20411404,238.76,238.7,0.03]
[1738334626617,7.2966,238.71,238.62,0.44907636]
[1738334626821,20.0,238.68,238.62,0.44907636]
[1738334627127,0.4189,238.67,238.62,0.44907636]
[1738334627450,20.0,238.68,238.62,0.44907636]
[1738334627744,6.7155,238.71,238.62,4.63977636]
[1738334627944,6.7155,238.71,238.62,0.44907636]
[1738334630638,20.0,238.68,238.62,0.44907636]
[1738334630828,1.6111,238.66,238.62,0.44907636]
[1738334631725,0.78573103,238.65,238.62,0.44907636]
[1738334632251,0.419,238.65,238.62,0.44907636]
[1738334632558,1.20478685,238.65,238.62,0.44907636]
[1738334632858,6.0799,238.63,238.62,0.44907636]
[1738334633028,6.86582241,238.63,238.62,0.44907636]
[1738334633446,20.0,238.6,238.49,13.41184853]
[1738334633647,0.78595931,238.59,238.49,13.41184853]
[1738334633849,0.78595931,238.59,238.46,16.86091307]
[1738334634157,0.78595931,238.59,238.47,13.41184853]
[1738334634454,0.4191,238.58,238.47,13.41184853]
[1738334634845,0.78600692,238.57,238.47,13.41184853]
[1738334635043,0.78600692,238.57,238.46,0.03]
[1738334635249,0.78600692,238.57,238.46,13.44184853]
[1738334635555,0.78600692,238.57,238.49,0.03]
[1738334636249,0.4191,238.56,238.49,0.03]
[1738334637027,2.29715445,238.55,238.49,0.03]
[1738334637228,1.5111,238.55,238.49,0.03]
[1738334638240,0.4192,238.54,238.49,0.03]
[1738334638446,1.20529698,238.54,238.49,0.03]
[1738334639345,0.4192,238.54,238.49,0.03]
[1738334640344,20.0,238.5,238.49,0.03]
[1738334641652,6.056,238.53,238.49,0.03]
[1738334643067,6.4752,238.53,238.49,0.03]
[1738334643865,0.7861125,238.52,238.49,0.03]
[1738334644265,20.0,238.5,238.49,0.03]
[1738334644469,20.4192,238.5,238.49,0.03]
[1738334645976,6.056,238.53,238.49,0.03]
[1738334646270,0.4192,238.54,238.49,0.03]
[1738334646663,1.20525362,238.54,238.49,0.03]
[1738334647444,3.25325362,238.54,238.49,0.03]
[1738334647865,1.0,238.52,238.49,0.03]
[1738334648077,0.78633518,238.51,238.49,0.03]
[1738334648374,20.4193,238.47,238.46,0.03]
[1738334648572,21.20574427,238.47,238.46,0.03]
[1738334649849,20.0,238.47,238.46,0.03]
[1738334650178,81.648,238.54,238.46,0.03]
[1738334650179,0.4192,238.51,238.46,0.03]
[1738334650374,0.4192,238.53,238.46,0.03]
[1738334650555,20.0,238.52,238.46,0.03]
[1738334650761,0.4192,238.53,238.46,0.03]
[1738334651157,20.78614484,238.52,238.46,0.03]
[1738334651362,20.0,238.52,238.46,0.03]
[1738334651983,0.78620173,238.51,238.46,0.03]
[1738334652154,1.0,238.49,238.46,0.03]
[1738334652353,0.4193,238.47,238.46,0.03]
[1738334652675,1.4193,238.47,238.46,0.03]
[1738334653058,0.4193,238.47,238.46,0.03]
[1738334653366,1.20569387,238.47,238.46,0.03]
[1738334653576,0.4193,238.47,238.46,0.03]
[1738334655374,0.4192,238.51,238.46,0.03]
[1738334656081,1.20538753,238.51,238.46,0.03]
[1738334657358,0.4192,238.51,238.46,0.03]
[1738334659983,20.78621488,238.54,238.46,0.03]
[1738334660181,0.4192,238.55,238.49,20.28034684]
[1738334660762,0.4192,238.55,238.47,20.28034684]
[1738334661185,20.78596926,238.6,238.47,20.28034684]
[1738334661399,0.4191,238.59,238.47,24.47354684]
[1738334661685,0.4191,238.59,238.49,20.28034684]
[1738334662586,0.4191,238.59,238.5,13.41184853]
[1738334663270,0.4191,238.59,238.51,24.47294684]
[1738334663472,20.0,238.6,238.52,13.41184853]
[1738334664671,20.4191,238.6,238.52,13.41184853]
[1738334665592,20.4191,238.6,238.5,13.41184853]
[1738334666668,0.78592372,238.59,238.47,13.41184853]
[1738334666870,0.78592372,238.59,238.46,0.03]
[1738334667068,2.0,238.56,238.46,0.03]
[1738334667285,1.4672,238.54,238.46,0.03]
[1738334667584,0.78622277,238.53,238.46,0.03]
[1738334667968,20.0,238.51,238.46,0.03]
[1738334668170,20.0,238.49,238.46,0.03]
[1738334668367,0.78635037,238.48,238.46,0.03]
[1738334669302,0.4193,238.47,238.46,0.03]
[1738334670873,1.20569389,238.47,238.46,0.0001]
[1738334673072,0.4193,238.47,238.46,0.0001]
[1738334673878,1.20567815,238.48,238.46,0.0001]
[1738334674082,0.4193,238.48,238.46,0.0001]
[1738334674485,0.84937154,238.51,238.46,0.0001]
[1738334674693,2.31677154,238.51,238.46,0.0001]
[1738334675216,20.0,238.49,238.46,0.0001]
[1738334675575,20.0,238.5,238.46,0.0001]
[1738334675781,0.786211,238.49,238.46,0.0001]
[1738334676703,0.4193,238.48,238.46,0.0001]
[1738334677906,0.78633578,238.47,238.46,0.0001]
[1738334678600,1.78633578,238.47,238.46,0.0001]
[1738334678907,20.0,238.44,238.43,0.0001]
[1738334679209,20.78658043,238.44,238.43,0.0001]
[1738334679812,21.78658043,238.44,238.43,0.0001]
[1738334680276,20.78658043,238.44,238.43,0.0001]
[1738334680477,21.78658043,238.44,238.43,0.0001]
[1738334681205,22.20588043,238.44,238.43,0.0001]
[1738334681603,21.20588043,238.44,238.43,0.0001]
[1738334685207,22.20588043,238.44,238.43,0.0001]
[1738334685403,22.20588043,238.44,238.34,0.03]
[1738334685404,20.0,238.4,238.34,0.03]
[1738334685712,1.20613507,238.39,238.34,0.03]
[1738334685902,20.0,238.38,238.34,0.03]
[1738334686084,0.78682605,238.37,238.34,0.03]
[1738334686285,1.0,238.36,238.34,0.0001]
[1738334686591,0.78688975,238.35,238.34,0.0001]
[1738334687397,1.20638975,238.35,238.34,0.0001]
[1738334688212,2.20638975,238.35,238.34,0.0001]
[1738334688724,1.20638975,238.35,238.34,0.0001]
[1738334689203,0.4195,238.35,238.34,0.0001]
[1738334689384,0.78671846,238.39,238.34,0.0001]
[1738334689585,0.4194,238.39,238.34,0.0001]
[1738334690915,20.0,238.37,238.34,0.0001]
[1738334692595,0.78671738,238.36,238.34,0.0001]
[1738334693001,0.4195,238.35,238.34,0.0001]
[1738334694518,20.0,238.37,238.34,0.0001]
[1738334694722,20.4195,238.37,238.34,0.0001]
[1738334695013,0.4195,238.37,238.34,0.0001]
[1738334695315,0.4194,238.42,238.34,0.0001]
[1738334695617,0.78656622,238.41,238.34,0.0001]
[1738334696423,0.4194,238.4,238.34,0.0001]
[1738334697021,0.78661365,238.39,238.34,0.0001]
[1738334698621,0.78661335,238.42,238.34,0.0001]
[1738334698789,0.78656645,238.45,238.34,14.23914381]
[1738334698989,0.063,238.39,238.36,12.67824381]
[1738334700221,0.063,238.39,238.38,12.67824381]
[1738334700525,0.063,238.47,238.39,15.30221853]
[1738334700700,0.063,238.47,238.46,20.25908603]
[1738334701528,0.063,238.47,238.44,20.25908603]
[1738334701824,0.063,238.47,238.39,15.30221853]
[1738334701825,0.063,238.47,238.39,1.5139]
[1738334702133,0.4823,238.47,238.39,1.5139]
[1738334702299,0.78645197,238.46,238.37,2.98]
[1738334702493,0.78645197,238.46,238.34,0.0001]
[1738334702698,20.78645197,238.46,238.34,0.0001]
[1738334703323,21.78645197,238.46,238.34,0.0001]
[1738334703530,1.0,238.45,238.34,0.0001]
[1738334703713,1.0,238.43,238.34,0.0001]
[1738334703916,0.78667874,238.42,238.34,0.0001]
[1738334704222,0.4194,238.41,238.34,0.0001]
[1738334704412,22.0,238.39,238.34,0.0001]
[1738334704617,0.78685487,238.38,238.34,0.0001]
[1738334705527,21.78685487,238.38,238.34,0.0001]
[1738334706198,0.4195,238.36,238.34,0.0001]
[1738334706406,0.7869162,238.35,238.34,0.0001]
[1738334707417,1.20630496,238.36,238.34,0.0001]
[1738334707725,0.4195,238.36,238.34,0.0001]
[1738334708700,0.78676936,238.35,238.34,0.0001]
[1738334710301,1.4195,238.34,238.33,0.0001]
[1738334711206,1.20641322,238.34,238.33,0.0001]
[1738334712106,0.4195,238.34,238.33,0.0001]
[1738334712536,1.20632929,238.34,238.33,0.0001]
[1738334712846,15.61817782,238.34,238.33,0.0001]
[1738334713541,20.0,238.26,238.25,0.03]
[1738334713714,35.1991071,238.26,238.22,0.03]
[1738334714042,0.78725857,238.26,238.22,0.03]
[1738334714250,1.0,238.29,238.22,0.03]
[1738334714413,20.4196,238.27,238.22,0.03]
[1738334714609,0.78708089,238.26,238.22,0.03]
[1738334715432,1.78708089,238.26,238.22,0.03]
[1738334715639,1.0,238.24,238.22,0.03]
[1738334715841,0.78729249,238.23,238.22,0.03]
[1738334716040,14.19914102,238.23,238.22,0.03]
[1738334716256,1.0,238.22,238.09,0.03]
[1738334716525,0.4198,238.2,238.09,0.03]
[1738334716926,0.78745707,238.19,238.09,0.03]
[1738334717913,20.0,238.15,238.09,0.03]
[1738334718119,0.78761013,238.14,238.09,0.03]
[1738334718945,0.4199,238.13,238.09,0.03]
[1738334719453,0.7874703,238.14,238.09,0.03]
[1738334719653,0.78747851,238.21,238.13,20.25908603]
[1738334719853,0.4198,238.21,238.14,20.25908603]
[1738334720025,0.4197,238.25,238.16,20.25908603]
[1738334720354,0.78709246,238.24,238.14,20.25908603]
[1738334721041,0.4197,238.23,238.14,24.45818603]
[1738334721247,0.78714158,238.22,238.11,6.3061]
[1738334721451,20.0,238.18,238.1,0.03]
[1738334721646,0.78746262,238.17,238.1,0.03]
[1738334722946,0.4198,238.16,238.1,0.03]
[1738334723152,0.78747245,238.15,238.1,0.03]
[1738334723720,0.7874647,238.17,238.1,0.03]
[1738334724044,0.4198,238.2,238.11,20.25908603]
[1738334724556,0.4198,238.2,238.1,0.03]
[1738334724730,0.78733023,238.19,238.1,0.03]
[1738334724921,0.4198,238.18,238.1,0.03]
[1738334725125,0.78746483,238.17,238.1,0.03]
[1738334726162,1.0,238.15,238.1,0.03]
[1738334726333,0.78764216,238.14,238.1,0.03]
[1738334727025,0.4199,238.13,238.1,0.03]
[1738334727231,0.78769487,238.12,238.1,0.03]
[1738334728950,0.4199,238.11,238.1,0.03]
[1738334729134,1.4199,238.11,238.09,0.03]
[1738334729337,20.0,238.07,237.99,0.03]
[1738334729532,1.78784685,238.06,237.99,0.03]
[1738334730552,20.0,238.02,237.99,0.03]
[1738334730752,0.78802997,238.01,237.99,0.03]
[1738334731058,0.4201,238.0,237.99,0.03]
[1738334731956,0.78802997,238.01,237.99,0.03]
[1738334732158,20.4201,238.03,237.99,0.03]
[1738334732355,0.78782749,238.02,237.99,0.03]
[1738334733051,0.4201,238.01,237.99,0.03]
[1738334733358,0.78793856,238.0,237.99,0.03]
[1738334735171,1.20803856,238.0,237.99,0.03]
[1738334738356,0.78794828,238.05,237.99,0.03]
[1738334739166,0.42,238.04,237.99,0.03]
[1738334739347,0.78785215,238.03,237.99,0.03]
[1738334739765,0.42,238.04,237.99,0.03]
[1738334739957,20.0,238.08,237.99,0.03]
[1738334739958,0.78781521,238.03,237.99,0.03]
[1738334740666,1.0,238.02,237.99,0.0001]
[1738334740873,0.78811364,238.01,237.99,0.0001]
[1738334741075,0.78811364,238.01,237.88,6.5276]
[1738334741076,13.41184853,238.0,237.88,6.5276]
[1738334741248,13.41184853,238.0,237.86,1.5487]
[1738334741249,20.0,237.95,237.86,1.5487]
[1738334741572,0.78824111,237.94,237.86,1.5487]
[1738334741943,0.4202,237.97,237.86,1.5487]
[1738334742154,0.78812842,237.96,237.86,1.5487]
[1738334743159,0.4202,237.97,237.88,20.25908603]
[1738334743346,0.4202,237.97,237.89,20.25908603]
[1738334743546,0.78804591,237.98,237.89,20.25908603]
[1738334743973,0.4201,238.03,237.91,20.25908603]
[1738334744150,0.78791326,238.02,237.93,20.25908603]
[1738334744477,0.42,238.06,237.95,20.25908603]
[1738334744665,0.42,238.06,237.97,20.25908603]